fUSD/lending_fUSD_20260530
["ID","MTS","AMOUNT","RATE_DAILY","PERIOD"]
[423473519,1780155040000,-153.422563,0.00013165,2]
[423473500,1780155040000,-150.0,0.00013059,2]
[423473555,1780155040000,-298.342053,0.00013165,2]
[423473522,1780155040000,-500.0,0.00013165,2]
[423473551,1780155040000,-500.0,0.00013165,2]
[423473584,1780155040000,-150.0,0.00013297,2]
[423473579,1780155040000,-150.0,0.00013249,2]
[423473587,1780155040000,-151.0,0.00013299,2]
[423473577,1780155040000,-753.72,0.00013229,2]
[423473580,1780155040000,-150.0,0.00013267,2]
[423473585,1780155040000,-150.0,0.00013297,2]
[423473586,1780155040000,-22216.69289044,0.00013299,2]
[423473581,1780155040000,-150.0,0.00013268,2]
[423473583,1780155040000,-150.0,0.0001329,2]
[423473582,1780155040000,-150.0,0.00013278,2]
[423473589,1780155040000,-150.0,0.00013311,2]
[423473591,1780155040000,-150.0,0.00013332,2]
[423473590,1780155040000,-150.0,0.00013321,2]
[423473598,1780155040000,-150.0,0.00013392,2]
[423473588,1780155040000,-9186.72184252,0.000133,2]
[423473596,1780155040000,-150.0,0.00013375,2]
[423473592,1780155040000,-150.0,0.00013335,2]
[423473593,1780155040000,-695.33016603,0.00013339,2]
[423473595,1780155040000,-150.0,0.00013356,2]
[423473599,1780155040000,-150.0,0.00013392,2]
[423473594,1780155040000,-150.0,0.00013354,2]
[423473600,1780155040000,-151.0,0.00013396,2]
[423473552,1780155040000,-500.0,0.00013165,2]
[423473578,1780155040000,-150.0,0.00013247,2]
[423473576,1780155040000,-266.12,0.00013227,2]
[423473597,1780155040000,-150.0,0.00013376,2]
[423473571,1780155040000,-151.0,0.00013207,2]
[423473575,1780155040000,-150.0,0.00013226,2]
[423473548,1780155040000,-500.0,0.00013165,2]
[423473545,1780155040000,-500.0,0.00013165,2]
[423473547,1780155040000,-500.0,0.00013165,2]
[423473554,1780155040000,-500.0,0.00013165,2]
[423473550,1780155040000,-500.0,0.00013165,2]
[423473557,1780155040000,-3442.8838994,0.00013165,2]
[423473559,1780155040000,-151.0,0.00013165,2]
[423473558,1780155040000,-400.0,0.00013165,2]
[423473556,1780155040000,-552.7600002,0.00013165,2]
[423473560,1780155040000,-151.0,0.00013165,2]
[423473563,1780155040000,-150.0,0.00013178,2]
[423473549,1780155040000,-500.0,0.00013165,2]
[423473568,1780155040000,-150.0,0.00013205,2]
[423473562,1780155040000,-151.0,0.00013165,2]
[423473565,1780155040000,-2000.0,0.00013181,2]
[423473566,1780155040000,-150.0,0.00013183,2]
[423473564,1780155040000,-150.0,0.00013178,2]
[423473567,1780155040000,-150.34873257,0.00013188,2]
[423473573,1780155040000,-150.0,0.00013218,2]
[423473569,1780155040000,-820.17,0.00013207,2]
[423473570,1780155040000,-172.47512054,0.00013207,2]
[423473572,1780155040000,-154.228993,0.00013207,2]
[423473574,1780155040000,-150.0,0.00013221,2]
[423473561,1780155040000,-151.0,0.00013165,2]
[423473645,1780155041000,-1000.0,0.00013594,2]
[423473642,1780155041000,-200.0,0.00013594,2]
[423473635,1780155041000,-551.81763463,0.00013593,2]
[423473637,1780155041000,-1312.8899781,0.00013594,2]
[423473634,1780155041000,-350.0,0.00013589,3]
[423473626,1780155041000,-150.0,0.00013534,2]
[423473623,1780155041000,-150.0,0.00013534,2]
[423473628,1780155041000,-150.0,0.00013545,2]
[423473627,1780155041000,-150.0,0.00013534,2]
[423473643,1780155041000,-1000.0,0.00013594,2]
[423473629,1780155041000,-150.0,0.00013563,2]
[423473636,1780155041000,-170.1122375,0.00013594,2]
[423473654,1780155041000,-150.0,0.00013623,2]
[423473646,1780155041000,-1000.0,0.00013594,2]
[423473638,1780155041000,-200.0,0.00013594,2]
[423473639,1780155041000,-152.68221,0.00013594,2]
[423473640,1780155041000,-200.0,0.00013594,2]
[423473652,1780155041000,-150.0,0.00013613,2]
[423473651,1780155041000,-150.0,0.00013609,2]
[423473648,1780155041000,-290.85141829,0.00013594,2]
[423473649,1780155041000,-151.0,0.00013599,2]
[423473647,1780155041000,-448.14641804,0.00013594,2]
[423473650,1780155041000,-150.0,0.00013605,2]
[423473653,1780155041000,-150.0,0.0001362,2]
[423473644,1780155041000,-1000.0,0.00013594,2]
[423473630,1780155041000,-22216.69289044,0.00013566,2]
[423473601,1780155041000,-150.0,0.00013396,2]
[423473632,1780155041000,-9186.72184252,0.00013567,2]
[423473655,1780155041000,-150.0,0.0001363,2]
[423473610,1780155041000,-150.0,0.00013445,2]
[423473603,1780155041000,-784.0019,0.00013399,2]
[423473606,1780155041000,-151.0,0.00013399,2]
[423473605,1780155041000,-151.0,0.00013399,2]
[423473602,1780155041000,-300.0,0.00013398,2]
[423473608,1780155041000,-150.0,0.00013417,2]
[423473607,1780155041000,-1590.0,0.000134,2]
[423473604,1780155041000,-821.5452,0.00013399,2]
[423473609,1780155041000,-150.0,0.00013439,2]
[423473614,1780155041000,-150.0,0.0001346,2]
[423473631,1780155041000,-150.0,0.00013566,2]
[423473612,1780155041000,-159.62619924,0.00013452,2]
[423473620,1780155041000,-150.0,0.00013524,2]
[423473611,1780155041000,-150.0,0.00013449,2]
[423473613,1780155041000,-150.0,0.00013455,2]
[423473615,1780155041000,-150.0,0.00013463,2]
[423473618,1780155041000,-150.0,0.00013502,2]
[423473616,1780155041000,-150.0,0.00013481,2]
[423473617,1780155041000,-1000.0,0.000135,2]
[423473619,1780155041000,-150.0,0.00013506,2]
[423473625,1780155041000,-150.0,0.00013534,2]
[423473624,1780155041000,-150.0,0.00013534,2]
[423473633,1780155041000,-150.0,0.00013587,2]
[423473621,1780155041000,-150.0,0.00013534,2]
[423473667,1780155041000,-500.0,0.00013698,2]
[423473656,1780155041000,-150.0,0.00013651,2]
[423473657,1780155041000,-150.0,0.00013672,2]
[423473689,1780155041000,-500.0,0.00013698,2]
[423473688,1780155041000,-500.0,0.00013698,2]
[423473692,1780155041000,-500.0,0.00013698,2]
[423473691,1780155041000,-500.0,0.00013698,2]
[423473690,1780155041000,-161.53446073,0.00013698,2]
[423473695,1780155041000,-500.0,0.00013698,2]
[423473694,1780155041000,-500.0,0.00013698,2]
[423473699,1780155041000,-500.0,0.00013698,2]
[423473702,1780155041000,-500.0,0.00013698,2]
[423473701,1780155041000,-500.0,0.00013698,2]
[423473703,1780155041000,-500.0,0.00013698,2]
[423473698,1780155041000,-500.0,0.00013698,2]
[423473697,1780155041000,-500.0,0.00013698,2]
[423473696,1780155041000,-500.0,0.00013698,2]
[423473705,1780155041000,-500.0,0.00013698,2]
[423473704,1780155041000,-500.0,0.00013698,2]
[423473707,1780155041000,-509.66155533,0.00013698,2]
[423473706,1780155041000,-500.0,0.00013698,2]
[423473708,1780155041000,-500.0,0.00013698,2]
[423473710,1780155041000,-500.0,0.00013698,2]
[423473711,1780155041000,-410.30161227,0.00013698,2]
[423473713,1780155041000,-500.0,0.00013698,2]
[423473709,1780155041000,-500.0,0.00013698,2]
[423473662,1780155041000,-151.0,0.00013695,2]
[423473712,1780155041000,-500.0,0.00013698,2]
[423473686,1780155041000,-500.0,0.00013698,2]
[423473687,1780155041000,-500.0,0.00013698,2]
[423473700,1780155041000,-500.0,0.00013698,2]
[423473685,1780155041000,-500.0,0.00013698,2]
[423473684,1780155041000,-500.0,0.00013698,2]
[423473661,1780155041000,-150.0,0.00013694,2]
[423473664,1780155041000,-500.0,0.00013698,2]
[423473668,1780155041000,-500.0,0.00013698,2]
[423473658,1780155041000,-150.0,0.00013677,2]
[423473665,1780155041000,-500.0,0.00013698,2]
[423473660,1780155041000,-150.0,0.00013693,2]
[423473666,1780155041000,-501.41833734,0.00013698,2]
[423473663,1780155041000,-151.0,0.00013696,2]
[423473670,1780155041000,-500.0,0.00013698,2]
[423473680,1780155041000,-500.0,0.00013698,2]
[423473672,1780155041000,-500.0,0.00013698,2]
[423473679,1780155041000,-500.0,0.00013698,2]
[423473659,1780155041000,-150.0,0.00013677,2]
[423473676,1780155041000,-500.0,0.00013698,2]
[423473681,1780155041000,-500.0,0.00013698,2]
[423473693,1780155041000,-500.0,0.00013698,2]
[423473683,1780155041000,-500.0,0.00013698,2]
[423473678,1780155041000,-500.0,0.00013698,2]
[423473675,1780155041000,-500.0,0.00013698,2]
[423473682,1780155041000,-500.0,0.00013698,2]
[423473674,1780155041000,-500.0,0.00013698,2]
[423473671,1780155041000,-500.0,0.00013698,2]
[423473673,1780155041000,-500.0,0.00013698,2]
[423473669,1780155041000,-500.0,0.00013698,2]
[423473677,1780155041000,-500.0,0.00013698,2]
[423473752,1780155042000,-500.0,0.00013698,2]
[423473751,1780155042000,-500.0,0.00013698,2]
[423473748,1780155042000,-500.0,0.00013698,2]
[423473740,1780155042000,-500.0,0.00013698,2]
[423473750,1780155042000,-500.0,0.00013698,2]
[423473747,1780155042000,-500.0,0.00013698,2]
[423473744,1780155042000,-500.0,0.00013698,2]
[423473746,1780155042000,-500.0,0.00013698,2]
[423473743,1780155042000,-500.0,0.00013698,2]
[423473755,1780155042000,-500.0,0.00013698,2]
[423473749,1780155042000,-245.97684644,0.00013698,2]
[423473753,1780155042000,-500.0,0.00013698,2]
[423473759,1780155042000,-500.0,0.00013698,2]
[423473754,1780155042000,-500.0,0.00013698,2]
[423473756,1780155042000,-500.0,0.00013698,2]
[423473758,1780155042000,-500.0,0.00013698,2]
[423473760,1780155042000,-500.0,0.00013698,2]
[423473761,1780155042000,-500.0,0.00013698,2]
[423473768,1780155042000,-500.0,0.00013698,2]
[423473762,1780155042000,-500.0,0.00013698,2]
[423473763,1780155042000,-500.0,0.00013698,2]
[423473764,1780155042000,-500.0,0.00013698,2]
[423473766,1780155042000,-500.0,0.00013698,2]
[423473745,1780155042000,-500.0,0.00013698,2]
[423473757,1780155042000,-500.0,0.00013698,2]
[423473741,1780155042000,-500.0,0.00013698,2]
[423473715,1780155042000,-295.37631974,0.00013698,2]
[423473739,1780155042000,-500.0,0.00013698,2]
[423473769,1780155042000,-500.0,0.00013698,2]
[423473717,1780155042000,-500.0,0.00013698,2]
[423473718,1780155042000,-500.0,0.00013698,2]
[423473720,1780155042000,-500.0,0.00013698,2]
[423473719,1780155042000,-500.0,0.00013698,2]
[423473714,1780155042000,-420.45070713,0.00013698,2]
[423473716,1780155042000,-500.0,0.00013698,2]
[423473722,1780155042000,-500.0,0.00013698,2]
[423473723,1780155042000,-500.0,0.00013698,2]
[423473724,1780155042000,-500.0,0.00013698,2]
[423473721,1780155042000,-500.0,0.00013698,2]
[423473725,1780155042000,-387.24040857,0.00013698,2]
[423473727,1780155042000,-500.0,0.00013698,2]
[423473729,1780155042000,-500.0,0.00013698,2]
[423473728,1780155042000,-500.0,0.00013698,2]
[423473730,1780155042000,-500.0,0.00013698,2]
[423473726,1780155042000,-500.0,0.00013698,2]
[423473731,1780155042000,-500.0,0.00013698,2]
[423473735,1780155042000,-500.0,0.00013698,2]
[423473733,1780155042000,-500.0,0.00013698,2]
[423473734,1780155042000,-500.0,0.00013698,2]
[423473736,1780155042000,-500.0,0.00013698,2]
[423473732,1780155042000,-500.0,0.00013698,2]
[423473738,1780155042000,-500.0,0.00013698,2]
[423473737,1780155042000,-500.0,0.00013698,2]
[423473742,1780155042000,-500.0,0.00013698,2]
[423473765,1780155042000,-500.0,0.00013698,2]
[423473824,1780155042000,-500.0,0.00013698,2]
[423473773,1780155042000,-503.21523285,0.00013698,2]
[423473799,1780155042000,-500.0,0.00013698,2]
[423473800,1780155042000,-500.0,0.00013698,2]
[423473798,1780155042000,-500.0,0.00013698,2]
[423473795,1780155042000,-500.0,0.00013698,2]
[423473815,1780155042000,-3453.62,0.00013698,2]
[423473813,1780155042000,-3453.62,0.00013698,2]
[423473807,1780155042000,-3453.62,0.00013698,2]
[423473804,1780155042000,-3453.62,0.00013698,2]
[423473811,1780155042000,-3453.62,0.00013698,2]
[423473805,1780155042000,-3453.62,0.00013698,2]
[423473812,1780155042000,-3453.62,0.00013698,2]
[423473808,1780155042000,-3453.62,0.00013698,2]
[423473810,1780155042000,-3453.62,0.00013698,2]
[423473814,1780155042000,-3453.62,0.00013698,2]
[423473809,1780155042000,-3453.62,0.00013698,2]
[423473816,1780155042000,-500.0,0.00013698,2]
[423473818,1780155042000,-500.0,0.00013698,2]
[423473819,1780155042000,-500.0,0.00013698,2]
[423473820,1780155042000,-500.0,0.00013698,2]
[423473817,1780155042000,-500.0,0.00013698,2]
[423473821,1780155042000,-500.0,0.00013698,2]
[423473823,1780155042000,-500.0,0.00013698,2]
[423473825,1780155042000,-500.0,0.00013698,2]
[423473822,1780155042000,-500.0,0.00013698,2]
[423473767,1780155042000,-500.0,0.00013698,2]
[423473797,1780155042000,-500.0,0.00013698,2]
[423473801,1780155042000,-3453.62,0.00013698,2]
[423473806,1780155042000,-3453.62,0.00013698,2]
[423473803,1780155042000,-3453.62,0.00013698,2]
[423473794,1780155042000,-500.0,0.00013698,2]
[423473779,1780155042000,-500.0,0.00013698,2]
[423473778,1780155042000,-500.0,0.00013698,2]
[423473771,1780155042000,-500.0,0.00013698,2]
[423473772,1780155042000,-497.78987791,0.00013698,2]
[423473775,1780155042000,-500.0,0.00013698,2]
[423473770,1780155042000,-500.0,0.00013698,2]
[423473777,1780155042000,-500.0,0.00013698,2]
[423473774,1780155042000,-500.0,0.00013698,2]
[423473776,1780155042000,-500.0,0.00013698,2]
[423473780,1780155042000,-500.0,0.00013698,2]
[423473783,1780155042000,-500.0,0.00013698,2]
[423473785,1780155042000,-500.0,0.00013698,2]
[423473781,1780155042000,-512.05018733,0.00013698,2]
[423473802,1780155042000,-3453.62,0.00013698,2]
[423473784,1780155042000,-500.0,0.00013698,2]
[423473793,1780155042000,-500.0,0.00013698,2]
[423473796,1780155042000,-500.0,0.00013698,2]
[423473786,1780155042000,-500.0,0.00013698,2]
[423473790,1780155042000,-500.0,0.00013698,2]
[423473792,1780155042000,-500.0,0.00013698,2]
[423473791,1780155042000,-500.0,0.00013698,2]
[423473788,1780155042000,-500.0,0.00013698,2]
[423473789,1780155042000,-500.0,0.00013698,2]
[423473782,1780155042000,-500.0,0.00013698,2]
[423473787,1780155042000,-500.0,0.00013698,2]
[423473870,1780155043000,-151.0,0.00013699,2]
[423473875,1780155043000,-151.0,0.00013699,2]
[423473872,1780155043000,-151.0,0.00013699,2]
[423473885,1780155043000,-151.0,0.00013699,2]
[423473859,1780155043000,-494.481074,0.00013699,2]
[423473855,1780155043000,-494.481074,0.00013699,2]
[423473861,1780155043000,-151.0,0.00013699,2]
[423473869,1780155043000,-151.0,0.00013699,2]
[423473868,1780155043000,-151.0,0.00013699,2]
[423473880,1780155043000,-151.0,0.00013699,2]
[423473864,1780155043000,-151.0,0.00013699,2]
[423473866,1780155043000,-151.0,0.00013699,2]
[423473882,1780155043000,-193.519007,0.00013699,2]
[423473877,1780155043000,-151.0,0.00013699,2]
[423473874,1780155043000,-151.0,0.00013699,2]
[423473871,1780155043000,-151.0,0.00013699,2]
[423473879,1780155043000,-151.0,0.00013699,2]
[423473878,1780155043000,-151.0,0.00013699,2]
[423473876,1780155043000,-151.0,0.00013699,2]
[423473881,1780155043000,-151.0,0.00013699,2]
[423473884,1780155043000,-193.519007,0.00013699,2]
[423473883,1780155043000,-151.0,0.00013699,2]
[423473892,1780155043000,-151.0,0.00013699,2]
[423473893,1780155043000,-193.519007,0.00013699,2]
[423473887,1780155043000,-151.0,0.00013699,2]
[423473891,1780155043000,-193.519007,0.00013699,2]
[423473873,1780155043000,-151.0,0.00013699,2]
[423473857,1780155043000,-494.481074,0.00013699,2]
[423473826,1780155043000,-266.90977676,0.00013698,2]
[423473856,1780155043000,-494.481074,0.00013699,2]
[423473827,1780155043000,-500.0,0.00013698,2]
[423473829,1780155043000,-500.0,0.00013698,2]
[423473839,1780155043000,-500.0,0.00013698,2]
[423473830,1780155043000,-500.0,0.00013698,2]
[423473828,1780155043000,-500.0,0.00013698,2]
[423473831,1780155043000,-500.0,0.00013698,2]
[423473840,1780155043000,-500.0,0.00013698,2]
[423473835,1780155043000,-500.0,0.00013698,2]
[423473836,1780155043000,-500.0,0.00013698,2]
[423473833,1780155043000,-500.0,0.00013698,2]
[423473834,1780155043000,-500.0,0.00013698,2]
[423473832,1780155043000,-500.0,0.00013698,2]
[423473858,1780155043000,-494.481074,0.00013699,2]
[423473841,1780155043000,-500.0,0.00013698,2]
[423473842,1780155043000,-200.0,0.00013699,2]
[423473846,1780155043000,-721.0,0.00013699,2]
[423473849,1780155043000,-494.481074,0.00013699,2]
[423473852,1780155043000,-494.481074,0.00013699,2]
[423473848,1780155043000,-494.481074,0.00013699,2]
[423473851,1780155043000,-494.481074,0.00013699,2]
[423473847,1780155043000,-6104.33,0.00013699,2]
[423473850,1780155043000,-494.481074,0.00013699,2]
[423473845,1780155043000,-151.0,0.00013699,2]
[423473844,1780155043000,-151.0,0.00013699,2]
[423473853,1780155043000,-494.481074,0.00013699,2]
[423473854,1780155043000,-494.481074,0.00013699,2]
[423473843,1780155043000,-151.0,0.00013699,2]
[423473888,1780155043000,-151.0,0.00013699,2]
[423473916,1780155043000,-2500.0,0.00013699,2]
[423473889,1780155043000,-151.0,0.00013699,2]
[423473922,1780155043000,-494.481074,0.00013699,2]
[423473923,1780155043000,-494.481074,0.00013699,2]
[423473928,1780155043000,-494.481083,0.00013699,2]
[423473927,1780155043000,-494.481074,0.00013699,2]
[423473930,1780155043000,-1462.0,0.00013699,2]
[423473926,1780155043000,-494.481074,0.00013699,2]
[423473931,1780155043000,-1462.0,0.00013699,2]
[423473932,1780155043000,-1462.0,0.00013699,2]
[423473933,1780155043000,-1462.0,0.00013699,2]
[423473934,1780155043000,-1462.0,0.00013699,2]
[423473935,1780155043000,-1462.0,0.00013699,2]
[423473936,1780155043000,-1462.0,0.00013699,2]
[423473929,1780155043000,-1462.0,0.00013699,2]
[423473941,1780155043000,-1462.0,0.00013699,2]
[423473940,1780155043000,-1462.0,0.00013699,2]
[423473937,1780155043000,-1462.0,0.00013699,2]
[423473939,1780155043000,-1462.0,0.00013699,2]
[423473943,1780155043000,-193.519007,0.00013699,2]
[423473944,1780155043000,-193.519007,0.00013699,2]
[423473942,1780155043000,-1462.0,0.00013699,2]
[423473945,1780155043000,-1462.0,0.00013699,2]
[423473949,1780155043000,-193.519007,0.00013699,2]
[423473948,1780155043000,-1462.0,0.00013699,2]
[423473947,1780155043000,-1462.0,0.00013699,2]
[423473951,1780155043000,-193.519007,0.00013699,2]
[423473946,1780155043000,-1462.0,0.00013699,2]
[423473938,1780155043000,-1462.0,0.00013699,2]
[423473920,1780155043000,-238.640509,0.00013699,2]
[423473886,1780155043000,-193.519007,0.00013699,2]
[423473921,1780155043000,-494.481074,0.00013699,2]
[423473890,1780155043000,-193.519007,0.00013699,2]
[423473897,1780155043000,-193.519007,0.00013699,2]
[423473896,1780155043000,-279.960539,0.00013699,2]
[423473894,1780155043000,-151.0,0.00013699,2]
[423473898,1780155043000,-193.519007,0.00013699,2]
[423473899,1780155043000,-193.519007,0.00013699,2]
[423473900,1780155043000,-193.519007,0.00013699,2]
[423473925,1780155043000,-494.481074,0.00013699,2]
[423473895,1780155043000,-151.0,0.00013699,2]
[423473905,1780155043000,-4687.320992,0.00013699,2]
[423473903,1780155043000,-510.73,0.00013699,2]
[423473901,1780155043000,-193.519007,0.00013699,2]
[423473906,1780155043000,-4687.320992,0.00013699,2]
[423473902,1780155043000,-193.519007,0.00013699,2]
[423473908,1780155043000,-4687.320992,0.00013699,2]
[423473904,1780155043000,-4687.320992,0.00013699,2]
[423473919,1780155043000,-187.71242717,0.00013699,10]
[423473909,1780155043000,-4687.320992,0.00013699,2]
[423473917,1780155043000,-166.66,0.00013699,2]
[423473912,1780155043000,-4687.320992,0.00013699,2]
[423473913,1780155043000,-4687.320992,0.00013699,2]
[423473924,1780155043000,-494.481074,0.00013699,2]
[423473915,1780155043000,-4687.320992,0.00013699,2]
[423473907,1780155043000,-4687.320992,0.00013699,2]
[423473914,1780155043000,-4687.320992,0.00013699,2]
[423473910,1780155043000,-4687.320992,0.00013699,2]
[423473918,1780155043000,-154.0,0.00013699,2]
[423473911,1780155043000,-4687.320992,0.00013699,2]
[423473994,1780155044000,-500.0,0.00013744,2]
[423473991,1780155044000,-150.0,0.00013734,2]
[423473987,1780155044000,-695.33016603,0.0001373,2]
[423473986,1780155044000,-1590.0,0.00013725,2]
[423473990,1780155044000,-200.0,0.0001373,2]
[423473981,1780155044000,-2318.0,0.0001372,2]
[423473983,1780155044000,-2318.0,0.0001372,2]
[423473988,1780155044000,-200.0,0.0001373,2]
[423473985,1780155044000,-1590.0,0.00013725,2]
[423473984,1780155044000,-1590.0,0.0001372,2]
[423473989,1780155044000,-200.0,0.0001373,2]
[423473996,1780155044000,-150.0,0.00013758,2]
[423474009,1780155044000,-150.0,0.00013843,2]
[423473997,1780155044000,-150.0,0.00013772,2]
[423474004,1780155044000,-150.0,0.00013821,2]
[423473998,1780155044000,-150.0,0.00013772,2]
[423473995,1780155044000,-150.0,0.00013748,2]
[423474000,1780155044000,-150.0,0.00013791,2]
[423474002,1780155044000,-150.0,0.00013801,2]
[423474001,1780155044000,-150.0,0.000138,2]
[423474005,1780155044000,-209.534056,0.00013832,2]
[423474003,1780155044000,-150.0,0.00013819,2]
[423474007,1780155044000,-9186.72184252,0.00013833,2]
[423474013,1780155044000,-200.0,0.00013867,2]
[423474011,1780155044000,-150.0,0.00013851,2]
[423473993,1780155044000,-500.0,0.00013744,2]
[423473999,1780155044000,-150.0,0.00013779,2]
[423473992,1780155044000,-150.0,0.00013736,2]
[423473964,1780155044000,-4687.320992,0.00013699,2]
[423473973,1780155044000,-2110.59246693,0.00013699,2]
[423474012,1780155044000,-150.0,0.00013864,2]
[423473955,1780155044000,-193.519007,0.00013699,2]
[423473956,1780155044000,-1462.0,0.00013699,2]
[423473953,1780155044000,-1462.0,0.00013699,2]
[423473958,1780155044000,-1462.0,0.00013699,2]
[423473968,1780155044000,-4687.320992,0.00013699,2]
[423473957,1780155044000,-193.519007,0.00013699,2]
[423473959,1780155044000,-193.519007,0.00013699,2]
[423473960,1780155044000,-193.519002,0.00013699,2]
[423473961,1780155044000,-1462.0,0.00013699,2]
[423473962,1780155044000,-1462.0,0.00013699,2]
[423473963,1780155044000,-1468.82970576,0.00013699,2]
[423473982,1780155044000,-163.0,0.0001372,2]
[423473965,1780155044000,-4687.320992,0.00013699,2]
[423473967,1780155044000,-4687.320992,0.00013699,2]
[423473970,1780155044000,-4687.320992,0.00013699,2]
[423473969,1780155044000,-4687.320992,0.00013699,2]
[423473971,1780155044000,-4687.320996,0.00013699,2]
[423473972,1780155044000,-2110.59246693,0.00013699,2]
[423473980,1780155044000,-163.0,0.0001372,2]
[423473975,1780155044000,-151.0,0.00013699,2]
[423473974,1780155044000,-151.0,0.00013699,2]
[423473977,1780155044000,-150.0,0.00013712,2]
[423473979,1780155044000,-163.0,0.0001372,2]
[423473976,1780155044000,-163.44,0.000137,2]
[423473978,1780155044000,-150.0,0.00013715,2]
[423473966,1780155044000,-4687.320992,0.00013699,2]
[423474008,1780155044000,-166.66,0.00013836,2]
[423474006,1780155044000,-22216.69289044,0.00013832,2]
[423474070,1780155044000,-22216.69289044,0.00014099,2]
[423474042,1780155044000,-150.0,0.00013991,2]
[423474044,1780155044000,-1500.0,0.00014,2]
[423474045,1780155044000,-265.79243738,0.00014,30]
[423474048,1780155044000,-200.0,0.00014006,2]
[423474047,1780155044000,-200.0,0.00014006,2]
[423474050,1780155044000,-150.0,0.00014009,2]
[423474049,1780155044000,-150.0,0.00014009,2]
[423474046,1780155044000,-200.0,0.00014006,2]
[423474053,1780155044000,-1226.0,0.00014011,2]
[423474052,1780155044000,-1272.0,0.00014011,2]
[423474056,1780155044000,-150.0,0.00014019,2]
[423474058,1780155044000,-150.0,0.00014034,2]
[423474040,1780155044000,-46857.58197323,0.0001399,2]
[423474057,1780155044000,-150.0,0.00014033,2]
[423474061,1780155044000,-163.0,0.0001404,2]
[423474059,1780155044000,-165.64,0.00014036,2]
[423474055,1780155044000,-150.0,0.00014013,2]
[423474060,1780155044000,-1590.0,0.0001404,2]
[423474064,1780155044000,-150.0,0.00014055,2]
[423474063,1780155044000,-163.0,0.0001404,2]
[423474065,1780155044000,-150.0,0.00014068,2]
[423474068,1780155044000,-150.0,0.00014088,2]
[423474066,1780155044000,-150.0,0.00014076,2]
[423474067,1780155044000,-150.0,0.00014076,2]
[423474014,1780155044000,-200.0,0.00013867,2]
[423474069,1780155044000,-150.0,0.00014098,2]
[423474062,1780155044000,-2318.0,0.0001404,2]
[423474043,1780155044000,-250.0,0.00014,2]
[423474054,1780155044000,-1356.0,0.00014011,2]
[423474041,1780155044000,-151.0,0.0001399,2]
[423474010,1780155044000,-150.0,0.00013848,2]
[423474051,1780155044000,-525.0,0.00014011,2]
[423474019,1780155044000,-150.0,0.0001389,2]
[423474021,1780155044000,-13400.0,0.000139,5]
[423474020,1780155044000,-150.0,0.0001389,2]
[423474016,1780155044000,-153.27,0.00013884,2]
[423474022,1780155044000,-150.0,0.00013905,2]
[423474023,1780155044000,-150.0,0.00013906,2]
[423474017,1780155044000,-150.0,0.00013885,2]
[423474018,1780155044000,-1057.84,0.00013885,2]
[423474024,1780155044000,-435.3659984,0.00013911,2]
[423474026,1780155044000,-150.0,0.0001393,2]